fUSD/lending_fUSD_20250407
["ID","MTS","AMOUNT","RATE_DAILY","PERIOD"]
[357319568,1744006182119,-886.48,0.000736,72]
[357319569,1744006182147,-886.48,0.000736,72]
[357319570,1744006182176,-886.48,0.000736,72]
[357319571,1744006182203,-886.48,0.000736,72]
[357319572,1744006182322,-886.48,0.000736,72]
[357319573,1744006182352,-886.48,0.000736,72]
[357319574,1744006182381,-886.48,0.000736,72]
[357319575,1744006182409,-886.48,0.000736,72]
[357319576,1744006182437,-886.48,0.000736,72]
[357319577,1744006182467,-886.48,0.000736,72]
[357319578,1744006182496,-886.48,0.000736,72]
[357319579,1744006182525,-886.48,0.000736,72]
[357319580,1744006182556,-886.48,0.000736,72]
[357319581,1744006182586,-886.48,0.000736,72]
[357319582,1744006182615,-886.48,0.000736,72]
[357319583,1744006182643,-886.48,0.000736,72]
[357319584,1744006182671,-886.48,0.000736,72]
[357319585,1744006182700,-886.48,0.000736,72]
[357319586,1744006182730,-886.48,0.000736,72]
[357319587,1744006182758,-886.48,0.000736,72]
[357319588,1744006182788,-886.48,0.000736,72]
[357319589,1744006182817,-886.48,0.000736,72]
[357319590,1744006182843,-332.60791905,0.00073927,2]
[357319591,1744006182869,-1475.0,0.000741,120]
[357319592,1744006182895,-1000.53,0.00074367,2]
[357319593,1744006182920,-10000.0,0.00075,30]
[357319594,1744006182946,-250.0,0.00075,76]
[357319595,1744006182972,-344.91441206,0.00075296,2]
[357319596,1744006182998,-250.0,0.00076,77]
[357319597,1744006183023,-1000.53,0.00076631,2]
[357319598,1744006183050,-357.6762453,0.00076665,2]
[357319599,1744006183076,-250.0,0.00078,79]
[357319600,1744006183103,-370.91026638,0.00078034,2]
[357319601,1744006183128,-500.0,0.00078366,120]
[357319602,1744006183152,-1000.53,0.00078895,2]
[357319603,1744006183177,-250.0,0.00079,80]
[357319604,1744006183203,-384.63394623,0.00079403,2]
[357319605,1744006183228,-203.00000008,0.000798,120]
[357319606,1744006183255,-15000.0,0.0008,30]
[357319607,1744006183288,-250.0,0.0008,81]
[357319608,1744006183319,-151.0,0.0008074,120]
[357319609,1744006183349,-600.0,0.00080772,2]
[357319610,1744006183377,-250.0,0.00081,120]
[357319611,1744006183403,-1000.53,0.00081159,2]
[357319612,1744006183429,-183.25,0.00081659,120]
[357319613,1744006183455,-156.13,0.00081918,120]
[357319614,1744006183484,-2929.71244145,0.0008199,6]
[357319615,1744006183509,-4339.0,0.00082,120]
[357319616,1744006183542,-23986.0,0.00082,120]
[357319617,1744006183568,-180.8891559,0.00082092,28]
[357319618,1744006183594,-600.0,0.0008211,120]
[357319619,1744006183619,-600.0,0.0008211,120]
[357319620,1744006183643,-600.0,0.0008211,120]
[357319621,1744006183668,-742.04335417,0.0008211,120]
[357319622,1744006183695,-20507.9870901,0.00082182,6]
[357319623,1744006183719,-200.0,0.00082192,30]
[357319624,1744006183744,-500.0,0.00082192,120]
[357319625,1744006183769,-500.0,0.00082192,120]
[357319626,1744006183799,-500.0,0.00082192,120]
[357319627,1744006183824,-500.0,0.00082192,120]
[357319628,1744006183848,-500.0,0.00082192,120]
[357319629,1744006183872,-500.0,0.00082192,120]
[357319630,1744006183896,-500.0,0.00082192,120]
[357319631,1744006183921,-500.0,0.00082192,120]
[357319632,1744006183946,-500.0,0.00082192,120]
[357319633,1744006183970,-500.0,0.00082192,120]
[357319634,1744006183994,-1062.0,0.00082192,120]
[357319635,1744006184018,-1062.0,0.00082192,120]
[357319636,1744006184045,-1062.0,0.00082192,120]
[357319637,1744006184070,-1062.0,0.00082192,120]
[357319638,1744006184096,-1062.0,0.00082192,120]
[357319639,1744006184120,-1062.0,0.00082192,120]
[357319640,1744006184144,-1062.0,0.00082192,120]
[357319641,1744006184169,-1062.0,0.00082192,120]
[357319642,1744006184194,-1062.0,0.00082192,120]
[357319643,1744006184218,-1062.0,0.00082192,120]
[357319644,1744006184243,-1062.0,0.00082192,120]
[357319645,1744006184267,-150.0,0.00082192,2]
[357319646,1744006184293,-150.0,0.00082192,120]
[357319647,1744006184320,-150.0,0.00082192,120]
[357319648,1744006184345,-150.0,0.00082192,120]
[357319649,1744006184370,-150.0,0.00082192,120]
[357319650,1744006184396,-204.69384729,0.00082192,120]
[357319651,1744006184420,-150.88428039,0.00082192,120]
[357319652,1744006184445,-150.0,0.00082192,120]
[357319653,1744006184469,-150.0,0.00082192,120]
[357319654,1744006184493,-202.13508886,0.00082192,120]
[357319655,1744006184518,-500.0,0.00082192,120]
[357319656,1744006184550,-627.46345832,0.00082192,120]
[357319657,1744006184583,-500.0,0.00082192,120]
[357319658,1744006184849,-777.00386381,0.00082192,120]
[357319659,1744006184876,-150.0,0.00082192,120]
[357319660,1744006184901,-150.0,0.00082192,120]
[357319661,1744006184926,-210.44096486,0.00082192,120]
[357319662,1744006184951,-150.0,0.00082192,120]
[357319663,1744006184976,-500.0,0.00082192,120]
[357319664,1744006185005,-500.0,0.00082192,120]
[357319665,1744006185032,-500.0,0.00082192,120]
[357319666,1744006185058,-500.0,0.00082192,120]
[357319667,1744006185084,-500.0,0.00082192,120]
[357319668,1744006185109,-500.0,0.00082192,120]
[357319669,1744006185135,-500.0,0.00082192,120]
[357319670,1744006185160,-500.0,0.00082192,120]
[357319671,1744006185184,-500.0,0.00082192,120]
[357319672,1744006185210,-500.0,0.00082192,120]
[357319673,1744006185236,-500.0,0.00082192,120]
[357319674,1744006185262,-500.0,0.00082192,120]
[357319675,1744006185288,-500.0,0.00082192,120]
[357319676,1744006185316,-540.66015954,0.00082192,120]
[357319677,1744006185342,-154.94902568,0.00082192,120]
[357319678,1744006185367,-150.0,0.00082192,120]
[357319679,1744006185392,-150.0,0.00082192,120]
[357319680,1744006185416,-150.0,0.00082192,120]
[357319681,1744006185440,-226.95587316,0.00082192,120]
[357319682,1744006185465,-150.0,0.00082192,120]
[357319683,1744006185489,-150.0,0.00082192,120]
[357319684,1744006185517,-150.0,0.00082192,120]
[357319685,1744006185543,-207.11243269,0.00082192,120]
[357319686,1744006185569,-150.0,0.00082192,120]
[357319687,1744006185597,-150.0,0.00082192,120]
[357319688,1744006185623,-156.51597887,0.00082192,120]
[357319689,1744006185649,-500.0,0.00082192,29]
[357319690,1744006185674,-500.0,0.00082192,29]
[357319691,1744006185699,-500.0,0.00082192,29]
[357319692,1744006185723,-500.0,0.00082192,29]
[357319693,1744006185748,-500.0,0.00082192,29]
[357319694,1744006185774,-500.0,0.00082192,29]
[357319695,1744006185801,-500.0,0.00082192,29]
[357319696,1744006185826,-501.47649461,0.00082192,29]
[357319697,1744006185853,-815.266,0.00082381,120]
[357319698,1744006185879,-994.0,0.00083,120]
[357319699,1744006185909,-250.0,0.00083,120]
[357319700,1744006185935,-181.55633877,0.00083407,120]
[357319701,1744006185961,-2929.71244145,0.00083412,7]
[357319702,1744006185990,-1000.53,0.00083423,2]
[357319703,1744006186015,-157.47,0.00083581,30]
[357319704,1744006186042,-250.0,0.00084,120]
[357319705,1744006186067,-1399.0,0.000847,120]
[357319706,1744006186094,-14648.5622072,0.0008499,7]
[357319707,1744006186119,-20000.0,0.00085,30]
[357319708,1744006186144,-1835.88,0.00085,120]
[357319709,1744006186169,-250.0,0.00085,120]
[357319710,1744006186195,-500.0,0.0008518,120]
[357319711,1744006186221,-2929.71244145,0.00085274,7]
[357319712,1744006186246,-3078.77,0.00085284,120]
[357319713,1744006186272,-1000.53,0.00085686,2]
[357319714,1744006186300,-14648.5622072,0.0008649,7]
[357319715,1744006186331,-886.48,0.000865,78]
[357319716,1744006186362,-886.48,0.000865,78]
[357319717,1744006186392,-886.48,0.000865,78]
[357319718,1744006186422,-886.48,0.000865,78]
[357319719,1744006186453,-886.48,0.000865,78]
[357319720,1744006186483,-886.48,0.000865,78]
[357319721,1744006186521,-886.48,0.000865,78]
[357319722,1744006186560,-886.48,0.000865,78]
[357319723,1744006186595,-886.48,0.000865,78]
[357319724,1744006186629,-886.48,0.000865,78]
[357319725,1744006186662,-886.48,0.000865,78]
[357319726,1744006186696,-886.48,0.000865,78]
[357319727,1744006186729,-886.48,0.000865,78]
[357319728,1744006186762,-886.48,0.000865,78]
[357319729,1744006186796,-886.48,0.000865,78]
[357319730,1744006186869,-886.48,0.000865,78]
[357319731,1744006186901,-886.48,0.000865,78]
[357319732,1744006186931,-886.48,0.000865,78]
[357319733,1744006186960,-886.48,0.000865,78]
[357319734,1744006186990,-886.48,0.000865,78]
[357319735,1744006187020,-886.48,0.000865,78]
[357319736,1744006187050,-886.48,0.000865,78]
[357319737,1744006187081,-886.48,0.000865,78]
[357319738,1744006187111,-886.48,0.000865,78]
[357319739,1744006187138,-2929.71244145,0.0008739,7]
[357319740,1744006187163,-500.0,0.00087399,120]
[357319741,1744006187188,-500.0,0.00087399,120]
[357319742,1744006187213,-1399.22970634,0.000874,120]
[357319743,1744006187238,-525.09475798,0.00087947,120]
[357319744,1744006187262,-1000.53,0.0008795,2]
[357319745,1744006187289,-500.0,0.00088513,120]
[357319746,1744006187318,-211.02431763,0.00089571,15]
[357319747,1744006187345,-151.0,0.00089671,120]
[357319748,1744006187371,-181.43381984,0.000899,120]
[357319749,1744006187398,-8789.13732435,0.0008999,7]
[357319750,1744006187422,-304.17340479,0.00089999,31]
[357319751,1744006187448,-10000.0,0.0009,30]
[357319752,1744006187474,-1000.53,0.00090214,2]
[357319753,1744006187499,-500.0,0.0009041,120]
[357319754,1744006187524,-500.0,0.0009041,120]
[357319755,1744006187550,-500.0,0.0009041,120]
[357319756,1744006187574,-308.71459298,0.0009041,120]
[357319757,1744006187601,-156.13,0.00091096,120]
[357319758,1744006187633,-1000.53,0.00092478,2]
[357319759,1744006187660,-151.0,0.00092877,120]
[357319760,1744006187686,-183.25,0.00092892,120]
[357319761,1744006187714,-2929.71244145,0.00094574,8]
[357319762,1744006187740,-635.65,0.00094584,120]
[357319763,1744006187767,-1000.53,0.00094742,2]
[357319764,1744006187794,-500.0,0.00094874,120]
[357319765,1744006187820,-301.93716775,0.0009497,120]
[357319766,1744006187849,-1000.0,0.00095,120]
[357319767,1744006187876,-815.266,0.0009619,120]
[357319768,1744006187903,-2929.71244145,0.00096996,8]
[357319769,1744006187929,-1000.53,0.00097006,2]
[357319770,1744006187955,-162.15,0.00097462,2]
[357319771,1744006187981,-17578.2746487,0.0009749,8]
[357319772,1744006188006,-27334.26852356,0.000975,120]
[357319773,1744006188032,-1228.25043864,0.000975,120]
[357319774,1744006188059,-2929.71244145,0.00097505,8]
[357319775,1744006188084,-150.0,0.00097515,30]
[357319776,1744006188109,-219.17200872,0.00097515,30]
[357319777,1744006188134,-150.0,0.00097515,30]
[357319778,1744006188160,-150.0,0.00097515,30]
[357319779,1744006188190,-150.0,0.00097515,30]
[357319780,1744006188215,-685.67968412,0.00097515,30]
[357319781,1744006188241,-1215.84980973,0.00097515,30]
[357319782,1744006188266,-487.32972238,0.00097515,30]
[357319783,1744006188293,-151.0,0.00098603,120]
[357319784,1744006188323,-998.0,0.0009898,120]
[357319785,1744006188354,-1000.53,0.0009927,2]
[357319786,1744006188382,-11718.8497658,0.0009939,8]
[357319787,1744006188414,-886.48,0.000994,84]
[357319788,1744006188446,-886.48,0.000994,84]
[357319789,1744006188481,-886.48,0.000994,84]
[357319790,1744006188514,-886.48,0.000994,84]
[357319791,1744006188547,-886.48,0.000994,84]
[357319792,1744006188580,-886.48,0.000994,84]
[357319793,1744006188613,-886.48,0.000994,84]
[357319794,1744006188646,-886.48,0.000994,84]
[357319795,1744006188679,-886.48,0.000994,84]
[357319796,1744006188712,-886.48,0.000994,84]
[357319797,1744006188744,-886.48,0.000994,84]
[357319798,1744006188776,-886.48,0.000994,84]
[357319799,1744006188809,-886.48,0.000994,84]
[357319800,1744006188841,-886.48,0.000994,84]
[357319801,1744006188872,-886.48,0.000994,84]
[357319802,1744006188902,-886.48,0.000994,84]
[357319803,1744006188929,-1244.31989052,0.0009989,71]
[357319804,1744006188955,-4602.4209,0.000999,120]
[357319805,1744006188981,-172.2035395,0.000999,94]
[357319806,1744006189009,-14648.5622072,0.0009998,8]
[357319807,1744006189036,-6639.4844516,0.0009998,8]
[357319808,1744006189063,-12330.4711244,0.0009999,8]
[357319809,1744006189090,-500000.0,0.001,120]
[357319810,1744006189116,-234.0,0.001,120]
[357319811,1744006189141,-162.65,0.001,60]
[357319812,1744006189169,-499.999999,0.001,120]
[357319813,1744006189407,151.0,0.00053818,5]
[357319814,1744006191832,150.0,0.000518,2]
[357319815,1744006192192,190.36,0.000591,7]
[357319816,1744006192561,294.18,0.00074,14]
[357319817,1744006193035,2056.279154,0.00053888,120]
[357319818,1744006196088,151.0,0.00072193,5]
[357319819,1744006225293,151.0,0.00045,120]
[357319821,1744006232153,-151.0,0.00054493,120]
[357319822,1744006232162,-151.0,0.00063973,120]
[357319823,1744006232172,-151.0,0.00070013,5]
[357319824,1744006232181,-151.0,0.00071503,5]
[357319826,1744006232191,-151.0,0.00073452,120]
[357319827,1744006232200,-151.0,0.00082932,120]
[357319828,1744006232209,-5711.25393517,0.0009,120]
[357319829,1744006232221,-13597.37799365,0.0009,120]
[357319830,1744006232411,-1000.0,0.00074999,120]
[357319831,1744006232421,-151.0,0.00092411,120]
[357319832,1744006232431,-257.38516504,0.000999,120]
[357319833,1744006232443,-1121.64177466,0.000999,120]
[357319834,1744006232459,-434.42916095,0.000999,120]
[357319835,1744006232561,-3186.54389935,0.000999,120]
[357319836,1744006232571,-156.13,0.00100274,120]
[357319837,1744006232581,-311.43265069,0.00101534,2]
[357319863,1744006238137,-151.0,0.00063711,5]
[357319866,1744006238147,-621.3,0.00101534,2]
[357319869,1744006238171,-67.79734931,0.00101534,2]
[357319871,1744006238181,-151.0,0.0010189,120]
[357319872,1744006238190,-500.0,0.00102972,120]
[357319873,1744006238200,-1000.0,0.0010319,120]
[357319874,1744006238209,-183.25,0.00104125,120]
[357319875,1744006238219,-500.0,0.00107583,120]
[357319876,1744006238228,-161.88,0.00109082,120]
[357319877,1744006238237,-156.13,0.00109452,120]
[357319878,1744006238246,-815.266,0.0011,120]
[357319879,1744006238256,-151.0,0.0011137,120]
[357319880,1744006238265,-154.216,0.00111919,30]
[357319881,1744006238274,-161.88,0.00114008,120]
[357319882,1744006238283,-183.25,0.00115358,120]
[357319883,1744006238292,-151.0,0.00116822,120]
[357319884,1744006238302,-156.13,0.0011863,120]
[357319885,1744006238312,-161.88,0.00118934,120]
[357319886,1744006238327,-151.0,0.00120849,120]
[357319887,1744006238336,-161.88,0.0012386,120]
[357319888,1744006238346,-10000.0,0.00124,120]
[357319889,1744006238355,-500.0,0.00124348,120]
[357319890,1744006238367,-20318.29,0.00126071,120]
[357319891,1744006238376,-183.25,0.00126591,120]
[357319892,1744006238385,-156.13,0.00127808,120]
[357319893,1744006238396,-161.88,0.00128786,120]
[357319894,1744006238406,-151.0,0.00130329,120]
[357319895,1744006238415,-161.88,0.00133712,120]
[357319896,1744006238424,-162.65,0.00135,60]
[357319897,1744006238434,-3080.0377967,0.0013511,84]
[357319898,1744006238443,-156.13,0.00136986,120]
[357319899,1744006238452,-183.25,0.00137824,120]
[357319901,1744006238462,-500.0,0.00138377,120]
[357319902,1744006238471,-161.88,0.00138638,120]
[357319903,1744006238481,-19766.73333651,0.00139281,120]
[357319904,1744006238491,-500.0,0.00139397,120]
[357319905,1744006238500,-151.0,0.00139726,120]
[357319906,1744006238509,-151.0,0.00139726,120]
[357319907,1744006238518,-151.0,0.00139726,120]
[357319908,1744006238528,-151.0,0.00139726,120]
[357319909,1744006238538,-151.0,0.00139726,120]
[357319910,1744006238547,-151.0,0.00139726,120]
[357319911,1744006238557,-151.0,0.00139726,120]
[357319912,1744006238566,-169.366752,0.00139726,120]
[357319914,1744006238575,-151.282128,0.00139726,120]
[357319916,1744006238585,-151.0,0.00139726,120]
[357319918,1744006238594,-212.062935,0.00139726,120]
[357319920,1744006238602,-151.0,0.00139726,120]
[357319922,1744006238612,-151.0,0.00139726,120]
[357319924,1744006238621,-151.0,0.00139726,120]
[357319926,1744006238630,-151.0,0.00139726,120]
[357319928,1744006238639,-189.97997,0.00139726,120]
[357319930,1744006238648,-151.0,0.00139726,120]
[357319932,1744006238657,-151.0,0.00139726,120]
[357319934,1744006238667,-151.0,0.00139726,120]
[357319935,1744006238676,-151.0,0.00139726,120]
[357319937,1744006238685,-151.0,0.00139726,120]
[357319939,1744006238695,-151.0,0.00139726,120]
[357319941,1744006238704,-151.0,0.00139726,120]
[357319943,1744006238713,-151.0,0.00139726,120]
[357319945,1744006238723,-151.0,0.00139726,120]
[357319947,1744006238732,-151.0,0.00139726,120]
[357319949,1744006238741,-223.921621,0.00139726,120]
[357319951,1744006238750,-151.0,0.00139726,120]
[357319953,1744006238759,-155.644397,0.00139726,120]
[357319955,1744006238769,-151.0,0.00139726,120]
[357319957,1744006238778,-155.956289,0.00139726,120]
[357319959,1744006238788,-151.0,0.00139726,120]
[357319960,1744006238797,-151.0,0.00139726,120]
[357319962,1744006238806,-151.0,0.00139726,120]
[357319964,1744006238816,-151.0,0.00139726,120]
[357319966,1744006238827,-151.0,0.00139726,120]
[357319968,1744006238836,-169.7769,0.00139726,120]
[357319970,1744006238845,-152.680304,0.00139726,120]
[357319972,1744006238854,-153.834784,0.00139726,120]
[357319974,1744006238864,-151.0,0.00139726,120]
[357319976,1744006238873,-151.0,0.00139726,120]
[357319978,1744006238882,-151.0,0.00139726,120]
[357319980,1744006238892,-151.0,0.00139726,120]
[357319982,1744006238902,-151.0,0.00139726,120]
[357319984,1744006238912,-151.0,0.00139726,120]
[357319986,1744006238922,-151.0,0.00139726,120]
[357319988,1744006238931,-151.0,0.00139726,120]
[357319990,1744006238945,-151.0,0.00139726,120]
[357319992,1744006238955,-151.0,0.00139726,120]
[357319994,1744006238964,-151.0,0.00139726,120]
[357319996,1744006238974,-151.0,0.00139726,120]
[357319998,1744006238984,-151.0,0.00139726,120]
[357320000,1744006238993,-151.0,0.00139726,120]
[357320002,1744006239003,-151.0,0.00139726,120]
[357320004,1744006239016,-151.0,0.00139726,120]
[357320006,1744006239025,-151.0,0.00139726,120]
[357320008,1744006239035,-152.585253,0.00139726,120]
[357320010,1744006239044,-151.0,0.00139726,120]
[357320012,1744006239054,-153.20939,0.00139726,120]
[357320014,1744006239064,-151.0,0.00139726,120]
[357320016,1744006239074,-151.0,0.00139726,120]
[357320018,1744006239083,-190.232125,0.00139726,120]
[357320020,1744006239092,-151.0,0.00139726,120]
[357320022,1744006239102,-151.0,0.00139726,120]
[357320024,1744006239111,-151.0,0.00139726,120]
[357320026,1744006239120,-151.0,0.00139726,120]
[357320028,1744006239129,-151.0,0.00139726,120]
[357320030,1744006239139,-151.0,0.00139726,120]
[357320032,1744006239149,-151.0,0.00139726,120]
[357320034,1744006239159,-151.0,0.00139726,120]
[357320036,1744006239169,-151.0,0.00139726,120]
[357320038,1744006239178,-151.0,0.00139726,120]
[357320040,1744006239188,-151.0,0.00139726,120]
[357320042,1744006239197,-151.0,0.00139726,120]
[357320044,1744006239207,-151.0,0.00139726,120]
[357320046,1744006239215,-191.186236,0.00139726,120]
[357320048,1744006239225,-157.70302,0.00139726,120]
[357320050,1744006239234,-157.70302,0.00139726,120]
[357320051,1744006239243,-157.70302,0.00139726,120]
[357320053,1744006239252,-157.70302,0.00139726,120]
[357320055,1744006239261,-157.70302,0.00139726,120]
[357320057,1744006239271,-157.70302,0.00139726,120]
[357320059,1744006239280,-157.70302,0.00139726,120]
[357320061,1744006239290,-157.70302,0.00139726,120]
[357320063,1744006239300,-157.70302,0.00139726,120]
[357320065,1744006239310,-157.70302,0.00139726,120]
[357320067,1744006239324,-157.70302,0.00139726,120]
[357320068,1744006239333,-157.70302,0.00139726,120]
[357320070,1744006239342,-157.70302,0.00139726,120]
[357320072,1744006239352,-157.70302,0.00139726,120]
[357320074,1744006239362,-157.70302,0.00139726,120]
[357320076,1744006239371,-157.70302,0.00139726,120]
[357320078,1744006239381,-157.70302,0.00139726,120]
[357320080,1744006239390,-157.70302,0.00139726,120]
[357320082,1744006239401,-157.70302,0.00139726,120]
[357320084,1744006239412,-157.70302,0.00139726,120]
[357320086,1744006239421,-151.0,0.00139726,120]
[357320088,1744006239431,-151.0,0.00139726,120]
[357320090,1744006239440,-151.947293,0.00139726,120]
[357320092,1744006239450,-151.0,0.00139726,120]
[357320094,1744006239459,-154.822733,0.00139726,120]
[357320096,1744006239468,-227.500635,0.00139726,120]
[357320098,1744006239477,-267.752011,0.00139726,120]
[357320100,1744006239488,-151.0,0.00139726,120]
[357320102,1744006239498,-188.000229,0.00139726,120]
[357320104,1744006239507,-151.0,0.00139726,120]
[357320106,1744006239517,-151.432699,0.00139726,120]
[357320108,1744006239526,-151.0,0.00139726,120]
[357320110,1744006239535,-151.0,0.00139726,120]
[357320112,1744006239545,-151.0,0.00139726,120]
[357320114,1744006239555,-151.0,0.00139726,120]
[357320116,1744006239564,-151.0,0.00139726,120]
[357320118,1744006239574,-151.0,0.00139726,120]
[357320120,1744006239584,-151.0,0.00139726,120]
[357320122,1744006239593,-151.0,0.00139726,120]
[357320124,1744006239602,-151.0,0.00139726,120]
[357320125,1744006239611,-151.0,0.00139726,120]
[357320127,1744006239620,-151.0,0.00139726,120]
[357320129,1744006239629,-151.0,0.00139726,120]
[357320131,1744006239639,-151.0,0.00139726,120]
[357320133,1744006239648,-151.0,0.00139726,120]
[357320135,1744006239658,-151.0,0.00139726,120]
[357320137,1744006239667,-151.0,0.00139726,120]
[357320139,1744006239677,-151.0,0.00139726,120]
[357320141,1744006239687,-151.0,0.00139726,120]
[357320143,1744006239696,-251.420902,0.00139726,120]
[357320145,1744006239706,-209.309317,0.00139726,120]
[357320147,1744006239715,-151.0,0.00139726,120]
[357320149,1744006239724,-152.076168,0.00139726,120]
[357320151,1744006239734,-202.809799,0.00139726,120]
[357320153,1744006239744,-274.901236,0.00139726,120]
[357320155,1744006239753,-274.901236,0.00139726,120]
[357320157,1744006239763,-274.901236,0.00139726,120]
[357320158,1744006239772,-274.901236,0.00139726,120]
[357320160,1744006239782,-274.901236,0.00139726,120]
[357320162,1744006239792,-274.901236,0.00139726,120]
[357320164,1744006239802,-274.901236,0.00139726,120]
[357320166,1744006239811,-274.901236,0.00139726,120]
[357320168,1744006239821,-274.901236,0.00139726,120]
[357320171,1744006239833,-274.901236,0.00139726,120]
[357320173,1744006239843,-274.901236,0.00139726,120]
[357320175,1744006239852,-274.901236,0.00139726,120]
[357320176,1744006239862,-274.901236,0.00139726,120]
[357320178,1744006239872,-274.901236,0.00139726,120]
[357320181,1744006239882,-274.901236,0.00139726,120]
[357320182,1744006239892,-274.901236,0.00139726,120]
[357320184,1744006239901,-274.901236,0.00139726,120]
[357320187,1744006239911,-274.901236,0.00139726,120]
[357320191,1744006239950,-274.901236,0.00139726,120]
[357320193,1744006239960,-274.901244,0.00139726,120]
[357320195,1744006239969,-151.0,0.00139726,120]
[357320197,1744006239979,-152.058315,0.00139726,120]
[357320199,1744006239988,-1403.103508,0.00139726,120]
[357320201,1744006239998,-1403.103508,0.00139726,120]
[357320203,1744006240007,-1403.103508,0.00139726,120]
[357320206,1744006240017,-1403.103508,0.00139726,120]
[357320209,1744006240027,-1403.103508,0.00139726,120]
[357320211,1744006240036,-1403.103508,0.00139726,120]
[357320213,1744006240045,-1403.103508,0.00139726,120]
[357320215,1744006240055,-1403.103508,0.00139726,120]
[357320217,1744006240065,-1403.103508,0.00139726,120]
[357320219,1744006240076,-1403.10351,0.00139726,120]
[357320221,1744006240085,-151.0,0.00139726,120]
[357320223,1744006240095,-154.574343,0.00139726,120]
[357320225,1744006240104,-151.0,0.00139726,120]
[357320227,1744006240114,-151.0,0.00139726,120]
[357320229,1744006240123,-151.0,0.00139726,120]
[357320231,1744006240132,-151.0,0.00139726,120]
[357320232,1744006240142,-151.0,0.00139726,120]
[357320234,1744006240151,-151.0,0.00139726,120]
[357320236,1744006240160,-151.0,0.00139726,120]
[357320238,1744006240169,-151.0,0.00139726,120]
[357320240,1744006240179,-151.0,0.00139726,120]
[357320242,1744006240189,-151.0,0.00139726,120]
[357320244,1744006240198,-151.0,0.00139726,120]
[357320246,1744006240208,-151.0,0.00139726,120]
[357320248,1744006240217,-151.0,0.00139726,120]
[357320250,1744006240227,-267.86698,0.00139726,120]
[357320252,1744006240237,-151.0,0.00139726,120]
[357320255,1744006240246,-151.0,0.00139726,120]
[357320258,1744006240255,-151.0,0.00139726,120]
[357320261,1744006240264,-151.0,0.00139726,120]
[357320264,1744006240273,-151.0,0.00139726,120]
[357320267,1744006240284,-151.0,0.00139726,120]
[357320270,1744006240293,-151.0,0.00139726,120]
[357320273,1744006240303,-151.0,0.00139726,120]
[357320276,1744006240313,-151.0,0.00139726,120]
[357320279,1744006240327,-151.0,0.00139726,120]
[357320282,1744006240336,-151.0,0.00139726,120]
[357320285,1744006240345,-151.0,0.00139726,120]
[357320288,1744006240355,-151.0,0.00139726,120]
[357320290,1744006240365,-151.0,0.00139726,120]
[357320293,1744006240374,-151.0,0.00139726,120]
[357320296,1744006240383,-151.0,0.00139726,120]
[357320299,1744006240393,-151.0,0.00139726,120]
[357320302,1744006240403,-270.772729,0.00139726,120]